[Event "World Junior Chess Championship U20 2022"]
[White "Tan, Jun Ying"]
[Black "Kanyamarala, Tarun"]
[WhiteFideId "5710413"]
[BlackFideId "45004714"]
[WhiteElo "2189"]
[BlackElo "2407"]
[Result "1/2-1/2"]
[Round "05"]
[TimeControl "5400+30"]
[Date "2022.10.15"]
[WhiteClock "0:15:21"]
[BlackClock "0:03:57"]

1. d4 {[%clk 1:30:45]}  Nf6 {[%clk 1:30:46]} 2. c4 {[%clk 1:30:45]}  e6 {[%clk 1:31:00]} 3. Nc3 {[%clk 1:31:29]}  Bb4 {[%clk 1:31:19]} 4. e3 {[%clk 1:31:54]}  c5 {[%clk 1:31:16]} 5. Ne2 {[%clk 1:31:51]}  b6 {[%clk 1:31:26]} 6. a3 {[%clk 1:31:40]}  Ba5 {[%clk 1:31:46]} 7. Rb1 {[%clk 1:32:02]}  Na6 {[%clk 1:31:59]} 8. g3 {[%clk 1:32:13]}  Bb7 {[%clk 1:29:34]} 9. d5 {[%clk 1:32:37]}  b5 {[%clk 1:22:38]} 10. Bg2 {[%clk 1:32:51]}  bxc4 {[%clk 1:18:09]} 11. O-O {[%clk 1:32:42]}  O-O {[%clk 1:17:19]} 12. e4 {[%clk 1:33:00]}  d6 {[%clk 1:15:05]} 13. Bg5 {[%clk 1:33:07]}  h6 {[%clk 1:04:37]} 14. Bxf6 {[%clk 1:33:30]}  Qxf6 {[%clk 1:04:55]} 15. dxe6 {[%clk 1:33:51]}  Qxe6 {[%clk 1:04:17]} 16. Qa4 {[%clk 1:32:37]}  Bxc3 {[%clk 0:36:35]} 17. Nxc3 {[%clk 1:32:18]}  Nb8 {[%clk 0:24:54]} 18. Rbd1 {[%clk 1:10:03]}  Nd7 {[%clk 0:20:57]} 19. f4 {[%clk 1:06:03]}  Nb6 {[%clk 0:14:17]} 20. Qc2 {[%clk 1:06:06]}  Rab8 {[%clk 0:13:32]} 21. Rfe1 {[%clk 0:53:10]}  Ba8 {[%clk 0:04:24]} 22. e5 {[%clk 0:42:31]}  dxe5 {[%clk 0:04:18]} 23. Rxe5 {[%clk 0:42:49]}  Qc8 {[%clk 0:04:24]} 24. Bxa8 {[%clk 0:42:01]}  Rxa8 {[%clk 0:04:45]} 25. Ne4 {[%clk 0:35:49]}  Rd8 {[%clk 0:04:31]} 26. Re1 {[%clk 0:31:34]}  Qd7 {[%clk 0:03:59]} 27. Nxc5 {[%clk 0:30:58]}  Qc6 {[%clk 0:02:29]} 28. Qe4 {[%clk 0:24:30]}  Qxe4 {[%clk 0:01:22]} 29. R1xe4 {[%clk 0:24:49]}  Rd1+ {[%clk 0:01:01]} 30. Kf2 {[%clk 0:24:24]}  Rb1 {[%clk 0:00:33]} 31. Re8+ {[%clk 0:24:36]}  Rxe8 {[%clk 0:01:02]} 32. Rxe8+ {[%clk 0:25:05]}  Kh7 {[%clk 0:01:22]} 33. Re2 {[%clk 0:25:24]}  c3 {[%clk 0:00:38]} 34. bxc3 {[%clk 0:24:16]}  Rc1 {[%clk 0:00:56]} 35. Ne4 {[%clk 0:21:51]}  Ra1 {[%clk 0:01:14]} 36. Nd6 {[%clk 0:21:08]}  Rxa3 {[%clk 0:01:29]} 37. Re7 {[%clk 0:19:05]}  Nd5 {[%clk 0:01:29]} 38. Rxf7 {[%clk 0:19:15]}  Nxc3 {[%clk 0:01:51]} 39. f5 {[%clk 0:14:25]}  Kg8 {[%clk 0:01:00]} 40. Rb7 {[%clk 0:08:43]}  Kf8 {[%clk 0:00:34]} 41. Rf7+ {[%clk 0:04:10]}  Kg8 {[%clk 0:29:13]} 42. Rb7 {[%clk 0:32:38]}  Kf8 {[%clk 0:20:04]} 43. Nc4 {[%clk 0:21:06]}  Ne4+ {[%clk 0:06:00]} 44. Kg2 {[%clk 0:21:03]}  Ra2+ {[%clk 0:04:26]} 45. Kf3 {[%clk 0:20:51]}  Nd2+ {[%clk 0:03:18]} 46. Nxd2 {[%clk 0:21:17]}  Rxd2 {[%clk 0:03:47]} 47. h3 {[%clk 0:21:34]}  a5 {[%clk 0:03:35]} 48. Ra7 {[%clk 0:21:47]}  Ra2 {[%clk 0:03:45]} 49. Kg4 {[%clk 0:22:01]}  Ra3 {[%clk 0:03:26]} 50. Kh4 {[%clk 0:22:20]}  Ra2 {[%clk 0:00:56]} 51. g4 {[%clk 0:22:19]}  Ra3 {[%clk 0:01:03]} 52. Kh5 {[%clk 0:22:40]}  Rxh3+ {[%clk 0:01:05]} 53. Kg6 {[%clk 0:23:07]}  Rg3 {[%clk 0:01:06]} 54. Rf7+ {[%clk 0:23:21]}  Ke8 {[%clk 0:01:31]} 55. Rxg7 {[%clk 0:23:31]}  Rxg4+ {[%clk 0:01:55]} 56. Kxh6 {[%clk 0:23:35]}  Rb4 {[%clk 0:01:01]} 57. Ra7 {[%clk 0:23:16]}  Kf8 {[%clk 0:01:13]} 58. Kg6 {[%clk 0:23:31]}  Rf4 {[%clk 0:00:38]} 59. Rxa5 {[%clk 0:23:06]}  Rf1 {[%clk 0:00:45]} 60. Kf6 {[%clk 0:22:41]}  Kg8 {[%clk 0:01:07]} 61. Ra8+ {[%clk 0:15:44]}  Kh7 {[%clk 0:01:30]} 62. Re8 {[%clk 0:15:37]}  Rf2 {[%clk 0:01:40]} 63. Re5 {[%clk 0:14:36]}  Kg8 {[%clk 0:01:33]} 64. Ke6 {[%clk 0:14:34]}  Kg7 {[%clk 0:01:04]} 65. Re1 {[%clk 0:14:26]}  Ra2 {[%clk 0:01:10]} 66. f6+ {[%clk 0:11:50]}  Kf8 {[%clk 0:01:17]} 67. Re5 {[%clk 0:12:18]}  Ra1 {[%clk 0:00:56]} 68. Re2 {[%clk 0:12:00]}  Ra3 {[%clk 0:00:54]} 69. Rg2 {[%clk 0:12:14]}  Re3+ {[%clk 0:00:46]} 70. Kf5 {[%clk 0:12:41]}  Rf3+ {[%clk 0:00:46]} 71. Kg6 {[%clk 0:13:05]}  Rf1 {[%clk 0:01:06]} 72. Rg4 {[%clk 0:11:55]}  Rf2 {[%clk 0:01:16]} 73. Rg1 {[%clk 0:10:58]}  Rf3 {[%clk 0:01:41]} 74. Re1 {[%clk 0:11:14]}  Rg3+ {[%clk 0:01:09]} 75. Kf5 {[%clk 0:11:39]}  Rf3+ {[%clk 0:01:18]} 76. Ke6 {[%clk 0:12:06]}  Rf2 {[%clk 0:01:25]} 77. Re3 {[%clk 0:11:59]}  Rf1 {[%clk 0:01:43]} 78. Re2 {[%clk 0:12:26]}  Rf3 {[%clk 0:01:57]} 79. Rd2 {[%clk 0:12:40]}  Re3+ {[%clk 0:02:09]} 80. Kf5 {[%clk 0:13:04]}  Rf3+ {[%clk 0:02:26]} 81. Kg5 {[%clk 0:13:24]}  Rg3+ {[%clk 0:02:12]} 82. Kf4 {[%clk 0:13:52]}  Rg1 {[%clk 0:02:28]} 83. Ke5 {[%clk 0:13:52]}  Re1+ {[%clk 0:02:45]} 84. Kf5 {[%clk 0:14:09]}  Rf1+ {[%clk 0:03:06]} 85. Ke6 {[%clk 0:14:56]}  Re1+ {[%clk 0:03:31]} 86. Kf5 {[%clk 0:15:21]}  Rf1+ {[%clk 0:03:57]} 87. Ke4 {[%clk 0:15:21]} 1/2-1/2


[Site "http://www.chessbomb.com"]

[Event "World Junior Chess Championship U20 2022"]
[White "Chukavin, Kirill"]
[Black "Nemeth, Zalan"]
[WhiteFideId "4503023"]
[BlackFideId "2512041"]
[WhiteElo "2384"]
[BlackElo "2247"]
[Result "1-0"]
[Round "05"]
[TimeControl "5400+30"]
[Date "2022.10.15"]
[WhiteClock "0:02:44"]
[BlackClock "0:17:38"]

1. e4 {[%clk 1:29:21]}  e5 {[%clk 1:29:28]} 2. Nf3 {[%clk 1:29:05]}  Nf6 {[%clk 1:29:51]} 3. Nxe5 {[%clk 1:28:48]}  d6 {[%clk 1:30:16]} 4. Nf3 {[%clk 1:28:41]}  Nxe4 {[%clk 1:30:38]} 5. Bd3 {[%clk 1:28:31]}  d5 {[%clk 1:31:03]} 6. O-O {[%clk 1:27:33]}  Nc5 {[%clk 1:25:25]} 7. Re1+ {[%clk 1:25:14]}  Be7 {[%clk 1:25:49]} 8. Bf1 {[%clk 1:21:27]}  O-O {[%clk 1:24:26]} 9. d4 {[%clk 1:19:32]}  Ne4 {[%clk 1:24:51]} 10. Bd3 {[%clk 1:17:51]}  Bf5 {[%clk 1:25:02]} 11. Nbd2 {[%clk 1:07:48]}  Nd6 {[%clk 1:23:41]} 12. Nf1 {[%clk 1:02:57]}  Nd7 {[%clk 1:09:05]} 13. Ng3 {[%clk 1:01:17]}  Bxd3 {[%clk 1:07:29]} 14. Qxd3 {[%clk 1:01:40]}  Re8 {[%clk 1:02:13]} 15. b3 {[%clk 0:57:06]}  Nf6 {[%clk 0:57:37]} 16. Ne5 {[%clk 0:42:15]}  Nfe4 {[%clk 0:50:42]} 17. Bf4 {[%clk 0:28:31]}  c6 {[%clk 0:35:49]} 18. c4 {[%clk 0:24:21]}  Nxg3 {[%clk 0:35:32]} 19. hxg3 {[%clk 0:24:26]}  Bg5 {[%clk 0:28:21]} 20. Bxg5 {[%clk 0:20:37]}  Qxg5 {[%clk 0:28:45]} 21. cxd5 {[%clk 0:20:37]}  cxd5 {[%clk 0:29:09]} 22. Qf3 {[%clk 0:20:37]}  Re6 {[%clk 0:24:43]} 23. Qxd5 {[%clk 0:15:58]}  Rae8 {[%clk 0:23:56]} 24. Qf3 {[%clk 0:16:07]}  Rf6 {[%clk 0:20:35]} 25. Qe3 {[%clk 0:15:38]}  Qh5 {[%clk 0:17:50]} 26. g4 {[%clk 0:15:15]}  Qh4 {[%clk 0:18:18]} 27. Nf3 {[%clk 0:15:17]}  Rxe3 {[%clk 0:18:18]} 28. Nxh4 {[%clk 0:15:36]}  Rxe1+ {[%clk 0:17:03]} 29. Rxe1 {[%clk 0:16:04]}  Kf8 {[%clk 0:16:47]} 30. Nf3 {[%clk 0:10:27]}  Rf4 {[%clk 0:17:10]} 31. g5 {[%clk 0:10:16]}  Re4 {[%clk 0:17:17]} 32. Kf1 {[%clk 0:07:48]}  Rxe1+ {[%clk 0:13:01]} 33. Kxe1 {[%clk 0:07:37]}  Ne4 {[%clk 0:13:28]} 34. Ke2 {[%clk 0:04:33]}  Ke7 {[%clk 0:08:02]} 35. Ke3 {[%clk 0:04:40]}  Nc3 {[%clk 0:08:29]} 36. a4 {[%clk 0:03:23]}  Nd1+ {[%clk 0:08:55]} 37. Ke2 {[%clk 0:03:37]}  Nc3+ {[%clk 0:09:18]} 38. Ke3 {[%clk 0:03:13]}  Nd1+ {[%clk 0:09:29]} 39. Ke2 {[%clk 0:03:39]}  Nc3+ {[%clk 0:09:49]} 40. Kd2 {[%clk 0:03:43]}  Ne4+ {[%clk 0:06:09]} 41. Ke3 {[%clk 0:03:47]}  Nc3 {[%clk 0:02:50]} 42. Nd2 {[%clk 0:24:10]}  Ke6 {[%clk 0:31:47]} 43. Ne4 {[%clk 0:20:56]}  Nd5+ {[%clk 0:30:22]} 44. Kf3 {[%clk 0:19:31]}  b6 {[%clk 0:30:15]} 45. g4 {[%clk 0:19:14]}  a6 {[%clk 0:29:30]} 46. Ng3 {[%clk 0:14:08]}  Nc3 {[%clk 0:27:33]} 47. Ne2 {[%clk 0:12:42]}  Na2 {[%clk 0:25:31]} 48. Ke4 {[%clk 0:09:12]}  Kd6 {[%clk 0:25:39]} 49. f4 {[%clk 0:07:39]}  b5 {[%clk 0:24:59]} 50. axb5 {[%clk 0:07:46]}  axb5 {[%clk 0:25:26]} 51. f5 {[%clk 0:06:39]}  g6 {[%clk 0:25:00]} 52. d5 {[%clk 0:05:19]}  Nb4 {[%clk 0:24:19]} 53. Nc3 {[%clk 0:04:57]}  Kc5 {[%clk 0:24:34]} 54. Ke5 {[%clk 0:04:33]}  Nd3+ {[%clk 0:24:57]} 55. Kf6 {[%clk 0:04:49]}  b4 {[%clk 0:25:18]} 56. Na2 {[%clk 0:04:06]}  Kxd5 {[%clk 0:24:50]} 57. Kxf7 {[%clk 0:04:24]}  Ne5+ {[%clk 0:24:29]} 58. Kg7 {[%clk 0:03:45]}  gxf5 {[%clk 0:22:31]} 59. gxf5 {[%clk 0:04:10]}  Nf3 {[%clk 0:22:54]} 60. Kxh7 {[%clk 0:02:40]}  Nxg5+ {[%clk 0:22:54]} 61. Kg6 {[%clk 0:03:03]}  Ne4 {[%clk 0:18:26]} 62. Nxb4+ {[%clk 0:03:08]}  Kd4 {[%clk 0:18:00]} 63. Nc2+ {[%clk 0:02:53]}  Kc3 {[%clk 0:17:38]} 64. Na1 {[%clk 0:02:44]} 1-0


[Site "http://www.chessbomb.com"]

[Event "World Junior Chess Championship U20 2022"]
[White "Milosevic, Milos"]
[Black "Avila Rodriguez, Joshua Ad"]
[WhiteFideId "964875"]
[BlackFideId "5126444"]
[WhiteElo "2379"]
[BlackElo "2225"]
[Result "0-1"]
[Round "05"]
[TimeControl "5400+30"]
[Date "2022.10.15"]
[WhiteClock "0:50:17"]
[BlackClock "0:03:25"]

1. e4 {[%clk 1:30:57]}  c5 {[%clk 1:27:37]} 2. Nc3 {[%clk 1:30:57]}  d6 {[%clk 1:28:02]} 3. f4 {[%clk 1:31:44]}  g6 {[%clk 1:28:14]} 4. Nf3 {[%clk 1:32:09]}  Bg7 {[%clk 1:28:37]} 5. Bb5+ {[%clk 1:31:39]}  Bd7 {[%clk 1:28:43]} 6. Bc4 {[%clk 1:31:39]}  Nc6 {[%clk 1:29:00]} 7. O-O {[%clk 1:32:29]}  e6 {[%clk 1:28:17]} 8. f5 {[%clk 1:32:29]}  Nf6 {[%clk 1:22:19]} 9. fxe6 {[%clk 1:30:34]}  fxe6 {[%clk 1:18:02]} 10. Qe1 {[%clk 1:23:20]}  O-O {[%clk 1:14:05]} 11. d3 {[%clk 1:23:35]}  Nd4 {[%clk 0:56:20]} 12. Nxd4 {[%clk 1:23:24]}  cxd4 {[%clk 0:53:01]} 13. Nb1 {[%clk 1:23:49]}  d5 {[%clk 0:50:36]} 14. Bb3 {[%clk 1:22:47]}  dxe4 {[%clk 0:21:45]} 15. dxe4 {[%clk 1:23:16]}  Qb6 {[%clk 0:22:08]} 16. h3 {[%clk 1:09:16]}  Bb5 {[%clk 0:22:16]} 17. Rf3 {[%clk 1:09:36]}  Nd7 {[%clk 0:19:32]} 18. Na3 {[%clk 1:08:33]}  Rxf3 {[%clk 0:19:42]} 19. gxf3 {[%clk 1:08:58]}  Ba6 {[%clk 0:15:39]} 20. Kg2 {[%clk 1:07:22]}  Rf8 {[%clk 0:15:56]} 21. Nc4 {[%clk 0:59:36]}  Qc5 {[%clk 0:14:54]} 22. Qa5 {[%clk 0:59:04]}  Bb5 {[%clk 0:13:14]} 23. Bd2 {[%clk 0:55:07]}  Qh5 {[%clk 0:03:22]} 24. Rf1 {[%clk 0:54:24]}  Rc8 {[%clk 0:02:54]} 25. Qb4 {[%clk 0:51:34]}  Bf8 {[%clk 0:02:58]} 26. Nd6 {[%clk 0:49:49]}  Bxf1+ {[%clk 0:03:23]} 27. Kf2 {[%clk 0:50:17]}  Qh4+ {[%clk 0:03:25]} 0-1


[Site "http://www.chessbomb.com"]

[Event "World Junior Chess Championship U20 2022"]
[White "Mladek, Richard"]
[Black "Andreev, Konstantin"]
[WhiteFideId "386588"]
[BlackFideId "24239305"]
[WhiteElo "2371"]
[BlackElo "2206"]
[Result "1-0"]
[Round "05"]
[TimeControl "5400+30"]
[Date "2022.10.15"]
[WhiteClock "0:17:50"]
[BlackClock "0:15:45"]

1. d4 {[%clk 1:30:58]}  Nf6 {[%clk 1:29:06]} 2. c4 {[%clk 1:31:25]}  e6 {[%clk 1:29:30]} 3. Nc3 {[%clk 1:31:48]}  Bb4 {[%clk 1:29:41]} 4. e3 {[%clk 1:32:15]}  b6 {[%clk 1:29:21]} 5. Bd2 {[%clk 1:31:27]}  Bb7 {[%clk 1:29:34]} 6. Nf3 {[%clk 1:31:33]}  O-O {[%clk 1:29:42]} 7. Bd3 {[%clk 1:31:12]}  d6 {[%clk 1:29:15]} 8. O-O {[%clk 1:31:15]}  Nbd7 {[%clk 1:28:53]} 9. Rc1 {[%clk 1:31:34]}  Bxc3 {[%clk 1:29:04]} 10. Bxc3 {[%clk 1:31:16]}  Ne4 {[%clk 1:27:27]} 11. Be1 {[%clk 1:30:56]}  f5 {[%clk 1:26:13]} 12. Nd2 {[%clk 1:30:29]}  Qg5 {[%clk 1:24:54]} 13. f4 {[%clk 1:16:26]}  Qg6 {[%clk 1:22:06]} 14. Nxe4 {[%clk 1:16:26]}  fxe4 {[%clk 1:22:23]} 15. Be2 {[%clk 1:13:47]}  Qf6 {[%clk 1:07:43]} 16. b4 {[%clk 1:12:16]}  Rad8 {[%clk 0:56:03]} 17. Qa4 {[%clk 1:06:34]}  a6 {[%clk 0:54:13]} 18. c5 {[%clk 1:03:38]}  dxc5 {[%clk 0:51:18]} 19. bxc5 {[%clk 1:01:26]}  Nb8 {[%clk 0:42:48]} 20. cxb6 {[%clk 0:52:40]}  cxb6 {[%clk 0:43:09]} 21. Qb4 {[%clk 0:51:10]}  b5 {[%clk 0:36:23]} 22. a4 {[%clk 0:49:43]}  Nc6 {[%clk 0:34:26]} 23. Qb3 {[%clk 0:49:27]}  Ne7 {[%clk 0:31:02]} 24. axb5 {[%clk 0:45:43]}  Bd5 {[%clk 0:31:22]} 25. Qa3 {[%clk 0:38:29]}  axb5 {[%clk 0:31:20]} 26. Rc7 {[%clk 0:38:17]}  Rf7 {[%clk 0:30:58]} 27. Bxb5 {[%clk 0:36:11]}  Nf5 {[%clk 0:30:30]} 28. Rc5 {[%clk 0:27:25]}  Ra8 {[%clk 0:28:24]} 29. Qc3 {[%clk 0:27:17]}  h5 {[%clk 0:28:11]} 30. Bc6 {[%clk 0:22:15]}  Ra2 {[%clk 0:20:04]} 31. Rxd5 {[%clk 0:20:56]}  exd5 {[%clk 0:19:25]} 32. Bxd5 {[%clk 0:21:19]}  Re2 {[%clk 0:19:50]} 33. Bf2 {[%clk 0:19:48]}  Kh7 {[%clk 0:17:15]} 34. Bxf7 {[%clk 0:17:53]}  Qxf7 {[%clk 0:17:41]} 35. Qc6 {[%clk 0:17:48]}  Qe7 {[%clk 0:15:45]} 36. Qb5 {[%clk 0:17:50]} 1-0


[Site "http://www.chessbomb.com"]

[Event "World Junior Chess Championship U20 2022"]
[White "Stremavicius, Pijus"]
[Black "Brahami, Lamine"]
[WhiteFideId "12812730"]
[BlackFideId "7905637"]
[WhiteElo "2363"]
[BlackElo "2188"]
[Result "1-0"]
[Round "05"]
[TimeControl "5400+30"]
[Date "2022.10.15"]
[WhiteClock "0:38:12"]
[BlackClock "0:05:37"]

1. d4 {[%clk 1:30:57]}  Nf6 {[%clk 1:30:40]} 2. c4 {[%clk 1:31:21]}  g6 {[%clk 1:30:39]} 3. Nc3 {[%clk 1:31:45]}  Bg7 {[%clk 1:31:05]} 4. e4 {[%clk 1:32:10]}  d6 {[%clk 1:31:20]} 5. Be2 {[%clk 1:32:35]}  O-O {[%clk 1:30:22]} 6. Be3 {[%clk 1:33:00]}  e5 {[%clk 1:29:09]} 7. d5 {[%clk 1:33:23]}  Ne8 {[%clk 1:25:42]} 8. g4 {[%clk 1:26:50]}  f5 {[%clk 1:17:50]} 9. gxf5 {[%clk 1:26:59]}  gxf5 {[%clk 1:18:14]} 10. exf5 {[%clk 1:27:17]}  Bxf5 {[%clk 1:18:13]} 11. Nf3 {[%clk 1:27:19]}  c5 {[%clk 1:12:47]} 12. Rg1 {[%clk 1:21:16]}  Kh8 {[%clk 1:07:21]} 13. Ng5 {[%clk 1:14:50]}  Nf6 {[%clk 0:59:15]} 14. Bd3 {[%clk 1:12:06]}  e4 {[%clk 0:45:42]} 15. Ncxe4 {[%clk 1:10:58]}  Nxe4 {[%clk 0:44:04]} 16. Bxe4 {[%clk 1:10:23]}  Bxe4 {[%clk 0:43:29]} 17. Nxe4 {[%clk 1:10:05]}  Qh4 {[%clk 0:36:26]} 18. Qg4 {[%clk 0:58:12]}  Qxg4 {[%clk 0:35:48]} 19. Rxg4 {[%clk 0:58:41]}  Nd7 {[%clk 0:35:10]} 20. Nxd6 {[%clk 0:58:44]}  Bxb2 {[%clk 0:29:50]} 21. Rb1 {[%clk 0:56:26]}  Bc3+ {[%clk 0:28:49]} 22. Ke2 {[%clk 0:56:49]}  b6 {[%clk 0:29:08]} 23. Nb5 {[%clk 0:53:55]}  Be5 {[%clk 0:23:03]} 24. Bh6 {[%clk 0:44:26]}  Rfe8 {[%clk 0:12:42]} 25. Kf1 {[%clk 0:44:50]}  Rg8 {[%clk 0:10:20]} 26. Rxg8+ {[%clk 0:42:39]}  Rxg8 {[%clk 0:10:00]} 27. h3 {[%clk 0:40:56]}  a6 {[%clk 0:07:00]} 28. Na7 {[%clk 0:41:12]}  Rg6 {[%clk 0:07:21]} 29. Be3 {[%clk 0:40:51]}  Kg7 {[%clk 0:07:43]} 30. Nc6 {[%clk 0:40:29]}  Bd6 {[%clk 0:06:48]} 31. a4 {[%clk 0:38:28]}  Kf7 {[%clk 0:06:24]} 32. a5 {[%clk 0:37:41]}  Bh2 {[%clk 0:04:52]} 33. Ke2 {[%clk 0:37:41]}  bxa5 {[%clk 0:04:33]} 34. Rb7 {[%clk 0:38:06]}  Ke8 {[%clk 0:05:00]} 35. Ra7 {[%clk 0:38:33]}  Rg1 {[%clk 0:05:12]} 36. Rxa6 {[%clk 0:38:00]}  Bc7 {[%clk 0:05:37]} 37. Ra8+ {[%clk 0:38:12]} 1-0


[Site "http://www.chessbomb.com"]

[Event "World Junior Chess Championship U20 2022"]
[White "Martins, Bruno Andre Leite"]
[Black "Hercegovac, Neven"]
[WhiteFideId "1942255"]
[BlackFideId "2839135"]
[WhiteElo "2306"]
[BlackElo "2175"]
[Result "1-0"]
[Round "05"]
[TimeControl "5400+30"]
[Date "2022.10.15"]
[WhiteClock "0:31:30"]
[BlackClock "0:30:01"]

1. e4 {[%clk 1:25:53]}  c5 {[%clk 1:30:54]} 2. Nf3 {[%clk 1:26:09]}  d6 {[%clk 1:31:13]} 3. d4 {[%clk 1:26:17]}  cxd4 {[%clk 1:31:38]} 4. Nxd4 {[%clk 1:26:41]}  Nf6 {[%clk 1:32:02]} 5. Nc3 {[%clk 1:27:07]}  a6 {[%clk 1:32:28]} 6. f3 {[%clk 1:18:09]}  e5 {[%clk 1:30:25]} 7. Nb3 {[%clk 1:18:30]}  Be6 {[%clk 1:30:47]} 8. Be3 {[%clk 1:18:48]}  h5 {[%clk 1:30:50]} 9. Qd2 {[%clk 1:17:57]}  Nbd7 {[%clk 1:30:56]} 10. Nd5 {[%clk 1:12:21]}  Nxd5 {[%clk 1:29:48]} 11. exd5 {[%clk 1:12:44]}  Bf5 {[%clk 1:30:14]} 12. c4 {[%clk 1:08:58]}  Rc8 {[%clk 1:25:18]} 13. Rc1 {[%clk 1:07:03]}  Be7 {[%clk 1:23:50]} 14. Be2 {[%clk 1:06:06]}  h4 {[%clk 1:19:56]} 15. Na5 {[%clk 0:59:39]}  Qc7 {[%clk 1:16:42]} 16. O-O {[%clk 0:55:32]}  O-O {[%clk 0:47:20]} 17. b4 {[%clk 0:54:03]}  Qb8 {[%clk 0:44:31]} 18. Bg5 {[%clk 0:49:39]}  Bf6 {[%clk 0:41:16]} 19. Bxf6 {[%clk 0:47:56]}  Nxf6 {[%clk 0:41:39]} 20. Qg5 {[%clk 0:48:18]}  Qa7+ {[%clk 0:41:54]} 21. Kh1 {[%clk 0:47:38]}  Bg6 {[%clk 0:42:02]} 22. Qxh4 {[%clk 0:46:19]}  Qe3 {[%clk 0:40:28]} 23. Qe1 {[%clk 0:24:39]}  Nxd5 {[%clk 0:36:34]} 24. cxd5 {[%clk 0:25:00]}  Rxc1 {[%clk 0:36:56]} 25. Qxc1 {[%clk 0:25:26]}  Qxe2 {[%clk 0:37:20]} 26. Nxb7 {[%clk 0:19:39]}  Qb5 {[%clk 0:34:12]} 27. Nxd6 {[%clk 0:17:08]}  Qxb4 {[%clk 0:27:07]} 28. Qc7 {[%clk 0:14:24]}  Qd2 {[%clk 0:23:57]} 29. Nc8 {[%clk 0:13:08]}  Bd3 {[%clk 0:13:24]} 30. Ne7+ {[%clk 0:12:38]}  Kh8 {[%clk 0:13:37]} 31. Rg1 {[%clk 0:04:15]}  e4 {[%clk 0:13:19]} 32. fxe4 {[%clk 0:04:09]}  Bxe4 {[%clk 0:13:41]} 33. Qg3 {[%clk 0:04:32]}  Qh6 {[%clk 0:08:22]} 34. Re1 {[%clk 0:04:23]}  Qf6 {[%clk 0:07:51]} 35. Qh3+ {[%clk 0:02:45]}  Bh7 {[%clk 0:08:15]} 36. Qe3 {[%clk 0:02:57]}  Rd8 {[%clk 0:07:40]} 37. h3 {[%clk 0:03:16]}  Rd7 {[%clk 0:06:05]} 38. Qc5 {[%clk 0:02:50]}  Qd6 {[%clk 0:03:22]} 39. Qc8+ {[%clk 0:02:59]}  Rd8 {[%clk 0:03:47]} 40. Qc3 {[%clk 0:01:58]}  Re8 {[%clk 0:01:46]} 41. Ng6+ {[%clk 0:02:04]}  Bxg6 {[%clk 0:01:59]} 42. Rxe8+ {[%clk 0:02:27]}  Kh7 {[%clk 0:02:23]} 43. Qe5 {[%clk 0:01:52]}  Qa3 {[%clk 0:30:01]} 44. Qf4 {[%clk 0:31:30]} 1-0


[Site "http://www.chessbomb.com"]